bitfinex/quotes_ETHUSD_20240722
["timestamp","ask_amount","ask_price","bid_price","bid_amount"]
[1721617659918,3.0,3532.8,3532.1,2.83117]
[1721617660082,2.83054,3532.9,3532.2,0.09978915]
[1721617660283,2.4101,3533.3,3532.2,0.09978915]
[1721617660284,5.28111,3532.3,3532.2,0.09978915]
[1721617660685,5.28111,3532.3,3531.5,2.83161]
[1721617660886,5.28111,3532.3,3532.2,0.0968529]
[1721617661102,5.28111,3532.3,3531.5,2.83161]
[1721617661329,5.28111,3532.3,3532.2,0.0968529]
[1721617661487,5.28111,3532.3,3531.5,2.83161]
[1721617661694,5.28111,3532.3,3532.2,0.0968529]
[1721617661892,2.8311,3532.2,3531.5,2.83161]
[1721617664015,2.83152,3531.7,3530.7,2.83229]
[1721617664217,2.83152,3531.7,3530.8,0.583229]
[1721617664930,2.83158,3531.6,3530.9,2.83211]
[1721617666360,2.83167,3531.5,3530.8,0.583229]
[1721617666569,2.83167,3531.5,3530.8,2.8322]
[1721617667831,2.4501,3532.3,3530.3,0.1509087]
[1721617667832,2.83152,3531.7,3530.9,2.83212]
[1721617668647,2.83159,3531.6,3530.9,2.83212]
[1721617669067,2.83159,3531.6,3531.0,0.09390367]
[1721617669778,2.83167,3531.5,3531.0,0.09390367]
[1721617670072,2.83167,3531.5,3530.7,2.83229]
[1721617670234,2.83167,3531.5,3530.8,2.92619726]
[1721617670430,2.2996,3531.6,3530.8,2.92619726]
[1721617671030,5.13119,3531.6,3530.8,2.92619726]
[1721617671661,2.83167,3531.5,3530.8,2.92619726]
[1721617671865,2.83174,3531.4,3530.8,0.09399726]
[1721617672886,2.83182,3531.3,3530.5,2.83239]
[1721617673088,2.83182,3531.3,3530.6,2.92337482]
[1721617674693,2.2996,3531.6,3530.6,0.09102482]
[1721617674997,2.83169,3531.5,3530.4,2.83248]
[1721617675162,2.83169,3531.5,3530.7,0.0880681]
[1721617675366,2.83169,3531.5,3530.5,0.08808909]
[1721617675551,2.83169,3531.5,3530.8,0.0880576]
[1721617675756,2.2996,3531.6,3530.8,2.83215]
[1721617675952,5.2996,3531.6,3530.9,0.0880471]
[1721617676384,8.13118,3531.6,3530.9,0.0880471]
[1721617677058,8.13118,3531.6,3530.9,2.9201771]
[1721617677256,5.2996,3531.6,3530.9,2.9201771]
[1721617677457,2.2996,3531.6,3530.9,2.9201771]
[1721617680983,5.13119,3531.6,3530.9,2.9201771]
[1721617681180,2.83165,3531.5,3530.9,0.0880471]
[1721617681383,2.2996,3531.6,3530.9,0.0880471]
[1721617681571,2.2996,3531.6,3530.9,2.83213]
[1721617682000,2.2996,3531.6,3531.0,0.08803661]
[1721617682520,2.2996,3531.6,3531.0,2.92006661]
[1721617683097,2.2996,3531.6,3531.0,0.08803661]
[1721617683292,2.2996,3531.6,3530.8,2.83217]
[1721617683504,2.2996,3531.6,3531.0,2.83204]
[1721617683861,2.2996,3531.6,3531.1,0.08802611]
[1721617686916,5.13118,3531.6,3530.9,2.83213]
[1721617687082,5.13118,3531.6,3531.2,0.08804232]
[1721617687285,5.13118,3531.6,3530.9,2.83213]
[1721617687602,5.13118,3531.6,3531.0,0.08806331]
[1721617688411,2.83167,3531.5,3531.0,0.08806331]
[1721617688627,2.83167,3531.5,3530.8,2.83221]
[1721617688945,2.83167,3531.5,3530.9,0.0880738]
[1721617689616,2.83173,3531.4,3530.9,0.0880738]
[1721617690824,5.13122,3531.6,3530.9,0.0880738]
[1721617691031,2.83165,3531.5,3530.9,0.0880738]
[1721617691409,2.2996,3531.6,3530.9,2.9201438]
[1721617691833,5.1312,3531.6,3530.9,2.9201438]
[1721617692611,2.83166,3531.5,3530.9,0.0880738]
[1721617692827,2.83166,3531.5,3530.7,2.83228]
[1721617693052,2.83166,3531.5,3530.8,2.9202943]
[1721617695231,2.2996,3531.6,3530.8,0.0880843]
[1721617695431,5.13118,3531.6,3530.9,2.83213]
[1721617695674,5.13118,3531.6,3531.0,0.08806331]
[1721617702673,5.03118,3531.6,3531.0,0.08806331]
[1721617703851,2.1996,3531.6,3531.0,2.92010331]
[1721617704170,2.1996,3531.6,3531.0,0.08806331]
[1721617704356,2.83168,3531.5,3531.0,0.08806331]
[1721617704562,2.83175,3531.4,3530.6,2.83236]
[1721617704745,2.83175,3531.4,3531.1,0.08805705]
[1721617704942,2.83175,3531.4,3530.7,2.83228]
[1721617705162,2.83175,3531.4,3531.2,0.08804655]
[1721617705576,2.83175,3531.4,3530.7,2.83228]
[1721617705774,2.83175,3531.4,3531.3,0.08803606]
[1721617705947,2.83175,3531.4,3530.8,2.8322]
[1721617706578,2.83175,3531.4,3530.9,0.08807804]
[1721617706940,2.83175,3531.4,3530.7,2.83224]
[1721617707141,2.83175,3531.4,3531.0,0.08806754]
[1721617707365,2.83175,3531.4,3530.8,2.83221]
[1721617707973,2.83175,3531.4,3530.9,0.08807804]
[1721617710478,2.83175,3531.4,3530.5,3.42179037]
[1721617710676,2.83175,3531.4,3530.6,2.55001632]
[1721617710981,2.83175,3531.4,3530.7,2.46189133]
[1721617711183,2.83175,3531.4,3530.6,0.08812499]
[1721617711390,2.83175,3531.4,3530.8,0.088104]
[1721617711673,2.83175,3531.4,3530.7,2.9203945]
[1721617711878,2.83175,3531.4,3530.9,0.0880935]
[1721617712051,2.83175,3531.4,3530.8,0.088104]
[1721617712251,2.83175,3531.4,3531.0,0.08808301]
[1721617712437,2.83175,3531.4,3530.9,0.0880935]
[1721617712639,2.83175,3531.4,3531.0,0.08808301]
[1721617713185,2.83175,3531.4,3531.1,0.08807251]
[1721617713471,2.83175,3531.4,3530.7,2.83228]
[1721617713880,2.83175,3531.4,3530.8,0.088104]
[1721617717872,4.31959754,3531.4,3530.8,0.088104]
[1721617718078,5.03118,3531.6,3530.8,0.088104]
[1721617718079,6.61342754,3531.3,3530.8,0.088104]
[1721617718277,3.78154754,3531.3,3530.3,0.74024907]
[1721617718501,3.78154754,3531.3,3530.7,2.83222]
[1721617718780,3.78154754,3531.3,3530.8,0.08587623]
[1721617719157,6.61335754,3531.3,3530.8,0.08587623]
[1721617719363,2.2937,3531.3,3530.6,2.83234]
[1721617719549,2.2937,3531.3,3530.9,0.08586573]
[1721617719750,2.2937,3531.3,3530.6,2.83234]
[1721617720092,6.61342754,3531.3,3530.5,2.83244]
[1721617720592,6.61342754,3531.3,3530.6,0.08589722]
[1721617720790,5.12558,3531.3,3530.6,0.08589722]
[1721617720972,6.61278915,3531.3,3530.6,2.91825722]
[1721617721157,6.61278915,3531.3,3530.7,2.83229]
[1721617721158,3.78090915,3531.3,3530.7,2.83229]
[1721617721363,2.2937,3531.3,3530.7,2.83229]
[1721617721549,2.2937,3531.3,3530.8,2.83219]
[1721617721749,3.0,3531.5,3530.8,2.83219]
[1721617721750,4.48720915,3531.5,3530.8,2.91806623]
[1721617721950,4.48720915,3531.5,3530.9,2.83212]
[1721617722490,4.48720915,3531.5,3531.0,0.08585523]
[1721617722989,3.81290915,3531.6,3531.0,0.08585523]
[1721617723489,3.81290915,3531.6,3530.9,2.83213]
[1721617723659,3.81290915,3531.6,3531.1,0.08584474]
[1721617723861,2.3257,3531.6,3530.9,3.63304]
[1721617724064,9.64467516,3531.6,3530.9,0.80091]
[1721617724371,2.83168,3531.5,3531.0,0.08585523]
[1721617724571,6.81311436,3531.6,3531.0,0.08585523]
[1721617724776,1.48741436,3531.5,3530.8,2.83221]
[1721617724976,1.48741436,3531.4,3531.1,0.08584474]
[1721617725196,8.15734,3531.6,3530.8,2.83221]
[1721617725197,1.48741436,3531.5,3530.8,2.83221]
[1721617725397,1.48741436,3531.4,3531.2,0.08583424]
[1721617725580,1.48741436,3531.5,3530.8,2.83221]
[1721617725782,1.48741436,3531.5,3531.3,0.08582375]
[1721617725962,1.48741436,3531.5,3530.8,2.83221]
[1721617726958,8.15734,3531.6,3530.8,2.83221]
[1721617727456,1.4874258,3531.5,3530.8,2.83221]
[1721617728098,1.4874258,3531.4,3530.8,2.83221]
[1721617729160,1.4874258,3531.4,3530.9,0.08586573]
[1721617729669,2.83182,3531.3,3530.9,0.08586573]
[1721617729873,2.3111,3531.2,3530.6,2.83235]
[1721617730202,2.3111,3531.2,3530.7,0.08588532]
[1721617732196,2.83182,3531.3,3530.7,0.08588532]
[1721617732397,3.95548342,3531.4,3530.7,2.91816532]
[1721617732602,2.4681,3531.4,3530.7,2.91816532]
[1721617733180,2.4681,3531.4,3530.7,3.79563889]
[1721617733426,4.31898721,3531.5,3530.8,2.83219]
[1721617733643,4.31898721,3531.5,3530.9,2.3763]
[1721617733788,7.31885721,3531.6,3530.9,2.46216433]
[1721617735003,7.31885721,3531.6,3530.9,0.08586433]
[1721617735004,1.48759435,3531.2,3530.9,0.08586433]
[1721617735389,1.48759435,3531.2,3530.4,2.354]
[1721617735736,1.48759435,3531.3,3531.0,0.08585383]
[1721617736088,1.48759435,3531.3,3530.4,2.354]
[1721617736403,2.83192,3531.2,3530.5,0.08590632]
[1721617737830,7.31892599,3531.4,3530.6,2.83236]
[1721617738327,7.31892599,3531.4,3530.7,0.08588532]
[1721617738512,1.48718599,3531.3,3530.7,0.08588532]
[1721617738718,4.31907599,3531.3,3530.7,0.08588532]
[1721617738921,4.31907599,3531.3,3530.4,5.18653]
[1721617739084,4.31907599,3531.3,3530.5,0.08590632]
[1721617739290,2.8319,3531.2,3530.5,0.08590632]
[1721617740117,5.66386,3531.2,3530.5,0.08590632]
[1721617740423,2.8319,3531.2,3530.5,0.08590632]
[1721617742896,2.8319,3531.2,3530.4,5.18653]
[1721617743097,2.83206,3531.0,3530.3,0.1509087]
[1721617743299,2.83214,3530.9,3530.3,0.1509087]
[1721617743501,2.83223,3530.8,3530.4,0.08532562]
[1721617744854,1.48691193,3531.1,3530.4,0.08532562]
[1721617745025,2.83231,3530.7,3530.4,0.08532562]
[1721617745352,5.22361,3530.7,3530.4,0.08532562]
[1721617746364,2.3913,3530.7,3530.4,0.08532562]
[1721617746574,2.3913,3530.7,3530.3,0.1509087]
[1721617747151,2.83244,3530.6,3530.3,0.1509087]
[1721617747455,2.83244,3530.6,3530.4,0.08537164]
[1721617747955,1.48666255,3531.0,3530.4,0.08537164]
[1721617748250,4.31864255,3531.1,3530.4,0.08537164]
[1721617748474,3.0,3531.2,3530.4,0.08537164]
[1721617748475,2.83206,3531.0,3530.4,0.08537164]
[1721617751020,2.83214,3530.9,3530.4,0.08537164]
[1721617753126,2.83231,3530.7,3530.4,0.08537164]
[1721617754845,2.83214,3530.9,3530.4,0.08537164]
[1721617755044,2.83214,3530.9,3530.4,2.33987164]
[1721617756059,2.83214,3530.9,3530.4,0.08537164]
[1721617756265,2.83239,3530.6,3530.4,0.08537164]
[1721617757670,2.83226,3530.8,3530.4,0.08537164]
[1721617757841,7.31756435,3531.2,3530.4,0.08537164]
[1721617758041,4.48558559,3531.2,3530.4,0.08537164]
[1721617758280,2.82427,3530.8,3530.4,0.08537164]
[1721617758562,2.82427,3530.8,3530.5,0.08539471]
[1721617758729,2.82427,3530.8,3530.3,0.1509087]
[1721617758925,2.82427,3530.8,3530.4,0.08540521]
[1721617760637,2.83231,3530.7,3530.4,0.08540521]
[1721617763574,2.83239,3530.6,3530.4,0.08540521]
[1721617763730,2.83245,3530.5,3530.4,0.08540521]
[1721617765070,2.83245,3530.5,3530.3,0.1509087]
[1721617765447,2.83231,3530.7,3530.4,0.0854402]
[1721617765972,2.83231,3530.7,3530.3,0.1509087]
[1721617766148,2.83231,3530.7,3530.4,0.0854374]
[1721617767380,2.83214,3530.9,3530.4,0.0854374]
[1721617767584,2.83214,3530.9,3530.4,2.4752]
[1721617767744,2.83222,3530.8,3530.5,0.08542691]
[1721617767940,2.8323,3530.7,3530.5,0.08542691]
[1721617768146,2.8323,3530.7,3530.3,0.1509087]
[1721617768147,2.83237,3530.6,3530.3,0.1509087]
[1721617768345,2.83237,3530.6,3530.4,0.0854374]
[1721617768645,2.83245,3530.5,3530.4,0.0854374]
[1721617768956,2.83245,3530.5,3530.3,0.1509087]
[1721617769186,2.83245,3530.5,3530.4,0.08542342]
[1721617769340,2.83245,3530.5,3530.3,0.1509087]
[1721617769547,2.83245,3530.5,3530.4,0.0854374]
[1721617769740,2.83245,3530.5,3530.3,0.1509087]
[1721617769990,2.83245,3530.5,3530.4,0.0854374]
[1721617775510,2.83245,3530.5,3530.3,0.1509087]
[1721617775898,2.83238,3530.6,3530.4,0.0854514]
[1721617776204,1.48547255,3530.9,3530.4,0.0854514]
[1721617776205,2.8322,3530.9,3530.4,0.0854514]
[1721617776364,2.8322,3530.9,3530.4,0.62581341]
[1721617776566,7.48,3531.1,3530.4,0.54036201]
[1721617776767,7.48,3531.1,3530.5,2.83239]
[1721617776993,7.48,3531.1,3530.6,0.08344514]
[1721617777199,7.48,3531.1,3530.6,2.83231]
[1721617777402,7.48,3531.1,3530.7,0.08340527]
[1721617778825,7.48,3531.1,3530.7,2.91568527]
[1721617778985,7.48,3531.1,3530.8,0.29156853]
[1721617779184,7.48,3531.1,3530.9,0.08335071]
[1721617779416,7.48,3531.1,3530.5,2.83241]
[1721617779686,2.83182,3531.3,3530.5,2.83241]
[1721617779885,5.83157,3531.6,3530.7,2.83229]
[1721617779886,4.31774801,3531.5,3530.7,2.83229]
[1721617780117,3.0,3531.4,3530.8,0.57480822]
[1721617780323,4.31774801,3531.5,3530.8,0.57480822]
[1721617780324,1.48606801,3531.5,3530.8,0.65816943]
[1721617780492,4.48606801,3531.6,3530.8,0.08336121]
[1721617780699,4.48606801,3531.6,3530.4,2.3733]
[1721617781023,4.48606801,3531.6,3530.5,1.06813204]
[1721617781190,4.48606801,3531.6,3530.6,0.41816811]
[1721617781385,4.48606801,3531.6,3530.7,0.08336751]
[1721617781386,3.0,3531.6,3530.7,0.08336751]
[1721617781722,7.31763801,3531.6,3530.8,2.8322]
[1721617782247,7.31763801,3531.6,3530.9,0.08334651]
[1721617782248,5.83157,3531.6,3530.9,0.08334651]
[1721617782825,3.0,3531.6,3530.9,2.91541651]
[1721617783009,3.0,3531.6,3531.0,3.40682065]
[1721617783213,3.0,3531.6,3531.1,0.08330594]
[1721617783727,7.14876289,3531.8,3531.1,0.08330594]
[1721617783728,4.48585289,3531.7,3531.1,0.08330594]
[1721617784152,7.31735289,3531.7,3531.1,0.08330594]
[1721617784993,5.8315,3531.7,3531.1,0.08330594]
[1721617785416,7.31735289,3531.7,3531.1,0.08330594]
[1721617785603,1.48585289,3531.6,3531.1,0.08330594]
[1721617785926,7.31735289,3531.7,3531.1,0.08330594]
[1721617786124,2.83167,3531.5,3531.1,0.08330594]
[1721617786427,2.83176,3531.4,3531.2,0.08320452]
[1721617786588,1.48554332,3531.6,3531.2,0.08320452]
[1721617786792,3.74724332,3531.5,3530.5,2.83245]
[1721617787009,2.83181,3531.3,3530.6,0.0832661]
[1721617787701,2.83181,3531.3,3530.5,2.83244]
[1721617787912,2.83181,3531.3,3530.7,0.08326679]
[1721617788117,2.83181,3531.3,3530.6,0.08327728]
[1721617788329,2.83181,3531.3,3530.8,0.08325629]
[1721617788527,2.83181,3531.3,3530.7,0.08328077]
[1721617788740,5.09337,3531.5,3530.9,0.08325978]
[1721617788941,5.09337,3531.5,3530.8,0.08327027]
[1721617789239,2.83159,3531.6,3530.9,2.91536978]
[1721617789544,5.83159,3531.6,3530.9,0.08325978]
[1721617791537,3.0,3531.6,3531.0,2.83199]
[1721617791716,6.79045914,3531.8,3531.0,2.83199]
[1721617791717,3.0,3531.7,3531.0,2.83199]
[1721617791925,3.0,3531.7,3530.9,2.40295978]
[1721617791926,3.0,3531.7,3531.1,3.78481402]
[1721617792126,1.48553914,3532.0,3531.1,3.78481402]
[1721617792337,7.48,3532.2,3531.2,5.15157]
[1721617792637,7.48,3532.2,3531.7,2.83149]
[1721617792952,7.48,3532.2,3531.3,0.08317445]
[1721617792953,7.48,3532.2,3531.8,3.114559]
[1721617793244,7.48,3532.2,3531.8,3.19762098]
[1721617793652,7.48,3532.2,3531.8,5.54342098]
[1721617793950,10.31062,3532.8,3531.9,2.83133]
[1721617794153,2.83062,3532.8,3532.1,2.83117]
[1721617794352,4.31547435,3533.0,3532.1,0.8374651]
[1721617794650,2.83046,3533.0,3532.2,0.08297378]
[1721617795165,2.83046,3533.0,3531.8,2.68556914]
[1721617795166,2.8303,3533.2,3532.4,2.83093]
[1721617795362,10.31014,3533.4,3532.5,2.83084]
[1721617795363,2.83023,3533.3,3532.5,2.83084]
[1721617795665,2.83023,3533.3,3532.5,2.91359262]
[1721617795967,2.83023,3533.3,3532.5,2.83084]
[1721617796112,2.83023,3533.3,3532.5,3.397032]
[1721617796312,7.48,3533.9,3533.1,2.83035]
[1721617796521,15.23966,3534.0,3532.6,2.54351401]
[1721617796522,2.82966,3534.0,3533.2,2.83027]
[1721617796709,2.82966,3534.0,3533.2,2.91274142]
[1721617798415,3.0,3533.9,3533.2,2.91274142]
[1721617799165,3.0,3533.9,3533.2,0.65679056]
[1721617799313,2.82955,3534.2,3533.4,2.83012]
[1721617799673,2.4443,3534.3,3533.2,0.65679056]
[1721617799674,3.0,3534.1,3533.6,2.82995]
[1721617799815,5.82936,3534.4,3533.6,2.82995]
[1721617800569,3.0,3534.4,3533.7,2.82988]
[1721617801372,3.0,3534.4,3533.2,5.6605]
[1721617801518,2.82953,3534.2,3533.3,2.83014]
[1721617801722,2.82953,3534.2,3533.3,2.9124417]
[1721617802021,2.82965,3534.0,3533.3,0.0823017]
[1721617802262,2.3897,3533.8,3532.9,2.83051]
[1721617802570,2.3897,3533.8,3532.6,2.4869]
[1721617802571,2.82996,3533.7,3533.4,0.08229121]
[1721617802770,2.3897,3533.8,3532.8,2.83061]
[1721617802771,2.82997,3533.6,3532.8,2.83061]
[1721617802924,2.82997,3533.6,3532.2,3.0]
[1721617802925,2.82997,3533.6,3533.5,0.08228073]
[1721617803291,2.82997,3533.6,3532.9,2.83051]
[1721617803292,0.23932513,3533.6,3532.9,2.83051]
[1721617803422,0.23932513,3533.6,3532.7,2.83068]
[1721617803423,2.3897,3533.8,3532.7,2.83068]
[1721617803727,5.21957,3533.8,3533.0,2.83041]
[1721617804135,5.21957,3533.8,3533.1,0.08237992]
[1721617804523,2.82989,3533.7,3533.1,0.08237992]
[1721617804754,2.3897,3533.8,3533.1,0.08237992]
[1721617804928,2.83004,3533.6,3532.7,2.83068]
[1721617805129,2.83004,3533.6,3532.8,0.08240299]
[1721617805330,2.83006,3533.5,3532.8,0.08240299]
[1721617805819,2.82989,3533.7,3532.9,2.83047]
[1721617806019,2.3897,3533.8,3533.0,2.91282202]
[1721617806646,5.21952,3533.8,3533.0,2.91282202]
[1721617809037,5.21952,3533.8,3533.0,0.08238202]
[1721617809038,2.3897,3533.8,3533.0,0.08238202]
[1721617809237,2.83001,3533.6,3532.8,2.8306]
[1721617809463,5.21952,3533.8,3532.9,0.08228214]
[1721617809464,2.83014,3533.4,3532.9,0.08228214]
[1721617809828,2.83001,3533.6,3532.7,2.83068]
[1721617810055,2.83001,3533.6,3532.8,0.08229262]
[1721617810570,2.83011,3533.5,3532.8,0.08229262]
[1721617812670,2.3897,3533.8,3532.8,0.08229262]
[1721617813052,2.3897,3533.8,3532.1,2.83116]
[1721617813264,5.26485,3533.0,3532.9,0.08228214]
[1721617813495,2.83078,3532.6,3531.7,5.26919]
[1721617814099,2.83072,3532.7,3532.0,2.83124]
[1721617814405,2.83072,3532.7,3532.1,0.08236603]
[1721617814769,2.83057,3532.9,3532.1,0.08236603]
[1721617815120,2.83067,3532.8,3532.1,0.08236603]
[1721617815270,2.8307,3532.7,3532.1,0.08236603]
[1721617815611,2.83053,3532.9,3532.1,2.91346603]
[1721617815910,2.83053,3532.9,3532.1,0.08236603]
[1721617816269,2.83053,3532.9,3531.9,2.83132]
[1721617816469,2.83053,3532.9,3532.2,0.08235554]
[1721617816666,2.83053,3532.9,3532.2,2.91344554]
[1721617816906,2.83053,3532.9,3532.2,2.83109]
[1721617817206,2.83053,3532.9,3532.3,0.08243169]
[1721617818612,2.83053,3532.9,3532.4,0.0824212]
[1721617818785,2.83053,3532.9,3532.0,2.83121]
[1721617818963,2.83053,3532.9,3532.1,0.08245266]
[1721617819169,2.83063,3532.8,3532.1,0.08245266]
[1721617820102,1.47388389,3534.8,3532.9,2.4556]
[1721617820103,9.9732,3534.1,3532.9,2.4556]
[1721617820409,2.82941,3534.3,3533.4,2.83012]
[1721617820771,2.82941,3534.3,3533.5,0.08239807]
[1721617820971,2.82926,3534.5,3533.5,2.91243807]
[1721617821370,0.29610385,3534.6,3533.9,2.82971]
[1721617821569,0.29610385,3534.6,3534.0,0.08221577]
[1721617821868,5.32232,3534.7,3534.0,0.08221577]
[1721617822307,2.82933,3534.5,3533.1,2.83036]
[1721617822520,2.82933,3534.5,3533.5,2.83004]
[1721617822877,5.32229,3534.7,3533.8,2.82979]
[1721617823115,2.82922,3534.6,3533.8,2.82979]
[1721617823447,2.82922,3534.6,3533.9,0.08200156]
[1721617827842,5.3223,3534.7,3533.9,2.91171156]
[1721617828020,3.0,3534.6,3534.0,2.82964]
[1721617828341,3.0,3534.6,3534.1,2.91152223]
[1721617828501,5.82897,3534.9,3534.1,2.91152223]
[1721617829065,5.82897,3534.9,3533.0,0.24556]
[1721617829066,7.77599431,3535.2,3534.2,2.82948]
[1721617829345,7.48,3535.2,3534.5,2.82925]
[1721617829502,7.48,3535.2,3534.3,2.82941]
[1721617829503,7.48,3535.2,3534.4,2.82932]
[1721617829710,2.82847,3535.5,3534.7,2.82908]
[1721617830045,2.82847,3535.5,3534.8,0.08189751]
[1721617830853,3.0,3535.4,3534.8,0.08189751]
[1721617831039,5.4257,3535.7,3534.4,2.82927]
[1721617831346,2.82869,3535.3,3534.5,0.08192893]
[1721617831549,2.82872,3535.2,3534.5,0.08192893]
[1721617831914,2.82872,3535.2,3534.5,0.11105472]
[1721617834252,2.82856,3535.4,3534.5,2.94028472]
[1721617834456,3.0,3535.3,3534.5,2.94028472]
[1721617834680,2.82848,3535.5,3534.6,2.82915]
[1721617834881,2.82848,3535.5,3534.7,2.82906]
[1721617835048,2.82848,3535.5,3534.8,5.28859]
[1721617835216,13.30827,3535.8,3534.9,0.1109022]
[1721617835417,13.30827,3535.8,3534.9,0.16748121]
[1721617835418,7.48,3535.8,3534.9,0.16748121]
[1721617835756,7.48,3535.8,3535.2,2.82863]
[1721617836130,7.48,3535.8,3535.3,0.11064206]
[1721617836431,7.48,3535.8,3535.2,2.82863]
[1721617836641,7.48,3535.8,3535.3,0.1106002]
[1721617836970,7.48,3535.8,3535.2,2.82863]
[1721617837265,7.48,3535.8,3535.3,0.1106002]
[1721617837611,2.82797,3536.1,3535.3,2.82858]
[1721617837817,2.82789,3536.2,3535.4,2.82851]
[1721617838043,3.0,3536.1,3535.5,0.11046897]
[1721617838276,3.0,3536.1,3535.4,2.82851]
[1721617838413,2.82809,3536.0,3535.2,2.82869]
[1721617838614,5.82799,3536.1,3535.3,0.11049156]
[1721617838615,2.82829,3535.7,3535.3,0.11049156]
[1721617838815,2.82843,3535.6,3534.8,5.2886]
[1721617839020,2.82843,3535.6,3534.9,2.93946674]
[1721617840164,2.82813,3535.9,3534.9,0.11053674]
[1721617840475,2.82813,3535.9,3534.8,2.4596]
[1721617840476,2.82823,3535.8,3534.8,2.4596]
[1721617840679,2.8283,3535.7,3534.8,2.4596]
[1721617840958,2.3351,3536.0,3534.6,2.82917]
[1721617841137,2.3351,3536.0,3534.9,0.11053674]
[1721617841138,2.82858,3535.4,3534.9,0.11053674]
[1721617841338,2.82837,3535.6,3534.8,2.829]
[1721617841537,2.82837,3535.6,3535.0,0.11052545]
[1721617841755,2.3351,3536.0,3534.9,0.11053674]
[1721617842063,2.82875,3535.2,3534.4,2.82932]
[1721617842267,2.82875,3535.2,3534.5,0.11058193]
[1721617842851,2.82862,3535.3,3534.6,2.82917]
[1721617843168,10.30821,3535.8,3534.7,2.93963934]
[1721617843492,10.30821,3535.8,3535.2,2.82868]
[1721617843493,7.48,3535.8,3535.2,2.82868]
[1721617843675,2.82806,3536.0,3535.2,2.82868]
[1721617843832,3.0,3535.9,3535.2,2.82868]
[1721617844028,3.0,3535.9,3535.3,0.11049029]
[1721617844471,9.9266,3536.4,3534.9,2.82885]
[1721617844472,2.82823,3535.8,3534.9,2.82885]
[1721617844666,3.0,3536.0,3535.4,0.110479]
[1721617844667,2.82842,3535.6,3535.4,0.110479]
[1721617844878,2.82844,3535.6,3534.7,2.82907]
[1721617845253,2.82844,3535.6,3534.8,2.93951864]
[1721617845583,2.82832,3535.7,3534.9,2.82886]
[1721617846185,2.82832,3535.7,3535.0,0.11050604]
[1721617846775,2.82832,3535.7,3535.0,2.93934604]
[1721617847489,2.82809,3536.0,3535.1,5.29245]
[1721617847774,3.0,3535.9,3535.1,5.29245]
[1721617847987,3.0,3535.9,3535.2,0.11049043]
[1721617848192,2.82839,3535.6,3535.2,0.11049043]
[1721617848356,2.82821,3535.8,3535.2,0.11049043]
[1721617848682,2.82821,3535.8,3535.1,2.4637]
[1721617848988,2.82831,3535.7,3535.1,2.4637]
[1721617849144,2.82831,3535.7,3535.2,0.1104988]
[1721617849762,2.82838,3535.6,3535.2,0.1104988]
[1721617850184,2.82838,3535.6,3534.8,5.2169]
[1721617850396,3.0,3535.9,3534.8,5.2169]
[1721617850397,3.0,3535.9,3534.8,2.3879]
[1721617850575,3.0,3536.1,3534.8,2.3879]
[1721617850773,3.0,3536.2,3534.8,2.3879]
[1721617851000,2.8286,3535.4,3534.8,2.3879]
[1721617851293,2.8286,3535.4,3534.9,0.11055082]
[1721617851653,2.82845,3535.5,3534.9,0.11055082]
[1721617851854,2.82833,3535.7,3534.9,2.93947082]
[1721617852167,2.82838,3535.6,3534.9,2.93947082]
[1721617852369,2.82838,3535.6,3534.9,0.11055082]
[1721617852564,2.82847,3535.5,3534.9,0.11055082]
[1721617853790,2.82829,3535.7,3534.9,0.11055082]
[1721617853993,2.82822,3535.8,3534.9,2.93946082]
[1721617854593,2.82822,3535.8,3534.9,0.11055082]
[1721617854594,2.82845,3535.5,3534.9,0.11055082]
[1721617854986,2.82833,3535.7,3534.9,0.11055082]
[1721617855182,2.82833,3535.7,3534.9,0.6432929]
[1721617855405,2.82833,3535.7,3534.9,0.53274208]
[1721617855727,2.82833,3535.7,3535.0,2.82879]
[1721617855859,2.4279,3536.0,3534.8,2.3879]
[1721617856061,2.82875,3535.2,3534.9,0.11050198]
[1721617856262,2.82884,3535.1,3534.4,5.16171]
[1721617856460,2.82884,3535.1,3534.5,0.11054997]
[1721617856995,2.82871,3535.2,3534.5,2.93978997]
[1721617857438,2.82856,3535.4,3534.5,2.93978997]
[1721617857748,2.82839,3535.6,3534.7,2.3324]
[1721617857909,2.82825,3535.8,3534.9,2.82891]
[1721617858306,2.82825,3535.8,3535.0,0.11054788]
[1721617858830,2.82834,3535.7,3535.0,0.11054788]
[1721617859013,2.82838,3535.6,3535.0,0.11054788]
[1721617859327,2.82851,3535.5,3535.0,0.11054788]
[1721617859684,2.82851,3535.5,3534.8,2.82901]
[1721617859879,2.4279,3536.0,3535.1,0.11051008]
[1721617860085,2.82827,3535.8,3534.7,2.3324]
[1721617860330,2.82868,3535.3,3535.2,0.11050158]
[1721617860618,2.82868,3535.3,3535.2,0.11050297]
[1721617860839,2.82868,3535.3,3534.7,2.3324]
[1721617860984,2.82868,3535.3,3534.8,0.11056071]
[1721617861185,2.82868,3535.3,3534.7,2.3324]
[1721617861388,2.82868,3535.3,3534.8,0.11056071]
[1721617861588,2.82868,3535.3,3534.7,2.3324]
[1721617861828,2.82868,3535.3,3534.8,0.11056071]
[1721617861998,2.82868,3535.3,3534.7,2.3324]
[1721617862333,2.82868,3535.3,3534.8,0.11056071]
[1721617862933,2.82829,3535.7,3535.0,2.82885]
[1721617863114,2.82818,3535.9,3535.0,2.82885]
[1721617863319,2.82818,3535.9,3535.2,2.2535]
[1721617863550,2.82805,3536.0,3535.2,2.2535]
[1721617863823,3.0,3536.1,3534.9,0.0565705]
[1721617863824,2.82838,3535.6,3534.9,5.08242]
[1721617864025,2.82838,3535.6,3535.0,0.1105144]
[1721617864842,3.0,3536.1,3535.0,0.1105144]
[1721617865045,2.82877,3535.1,3535.0,0.1105144]
[1721617865241,2.82895,3534.9,3534.3,2.4343]
[1721617865447,2.82895,3534.9,3534.4,0.11054733]
[1721617866419,2.3529,3535.3,3534.4,0.11054733]
[1721617866420,5.6585,3534.5,3534.4,0.11054733]